Cogmind - Beta 14 @@@ ROGUE MODE // 2024.10.02 @ 16:19:18 Player: Elxavo Result: Destroyed by S-10 Pest with Light Assault Rifle Performance ------------- Evolutions (0) 0 Regions Visited (1) 200 Robots Destroyed (7) 35 Value Destroyed (184) 184 Prototype IDs (0) 0 Alien Tech Used (0) 0 Bonus (0) 0 TOTAL SCORE: 419 Bonus ------- None Cogmind --------- Core Integrity 0/250 Matter 290/300 Energy 230/250 System Corruption 0% Temperature Warm (156) Movement Walking (190) Ox1 Location -10/Materials Parts ------- > --- POWER (1) -------- Ion Engine > --- PROPULSION (2) --- Aluminum Leg > --- UTILITY (2) ------ Small Storage Unit Terrain Scanner > --- WEAPON (2) ------- Medium Laser Medium Laser > --- INVENTORY (8) ---- Wheel Wheel Compact Wheel Structural Scanner Peak State ------------ > --- POWER ------------ Ion Engine > --- PROPULSION ------- Aluminum Leg Aluminum Leg > --- UTILITY ---------- Small Storage Unit Improved Terrain Scanner > --- WEAPON ----------- Medium Laser Light Assault Rifle > --- INVENTORY -------- Ion Engine Wheel Compact Wheel [Rating: 9] Favorites ----------- Power Ion Engine Engine Ion Engine Propulsion Aluminum Leg Leg Aluminum Leg Utility Small Storage Unit Device Improved Terrain Scanner Storage Small Storage Unit Weapon Light Assault Rifle Energy Gun Medium Laser Ballistic Gun Light Assault Rifle Launcher Grenade Launcher Build | -11 -10 ------- Run | Yrd Mat Slots Evolved . | . . Power . | . . Propulsion . | . . Utility . | . . Weapon . | . . Parts Attached 13 | 3 10 Power 2 | 1 1 Engine 2 | 1 1 Core . | . . Reactor . | . . Propulsion 3 | . 3 Treads . | . . Leg 3 | . 3 Wheel . | . . Hover . | . . Flight . | . . Utility 3 | 1 2 Device 2 | . 2 Storage 1 | 1 . Processor . | . . Hackware . | . . Protection . | . . Artifact . | . . Weapon 5 | 1 4 Energy Gun 3 | . 3 Energy Cannon . | . . Ballistic Gun 1 | 1 . Ballistic Cannon . | . . Launcher 1 | . 1 Special Weapon . | . . Impact Weapon . | . . Slashing Weapon . | . . Piercing Weapon . | . . Special Melee Weapon . | . . Unidentified Prototypes . | . . Parts Lost 6 | . 6 Power 1 | . 1 Propulsion 2 | . 2 Utility 1 | . 1 Weapon 2 | . 2 Highest Loss Streak 5 | . 5 To Critical Strikes . | . . Average Slot Usage (%) 86 | . 86 Engine 13 | . 13 Leg 22 | . 22 Device 8 | . 8 Storage 14 | . 14 Energy Gun 7 | . 7 Ballistic Gun 10 | . 10 Launcher 8 | . 8 Peak Build Rating 9 | 3 9 Average Rating 5 | 2 6 On Entrance 1 | . 3 Naked Turns . | . . Heaviest Build 15 | 11 15 Greatest Support 20 | 3 20 Greatest Overweight (x) 3 | 3 2 Average Overweight (x) . | 2 . Largest Inventory Capacity 8 | 8 8 Average Capacity 7 | 7 8 Most Carried 8 | 6 8 Average Carried 5 | 5 6 Final Capacity 8 | 8 8 Final Carried 6 | 6 4 Class Distribution -------------------- 100% | Mutant Dominant Class ---------------- Mutant | -10/Materials Resources | -11 -10 ----------- Run | Yrd Mat Matter Collected 373 | 199 174 Remotely . | . . Salvage Created 234 | . 234 Parts 11 | . 11 Haulers Intercepted . | . . Recyclers Shooed . | . . Parts Field Recycled . | . . Retrieved Matter . | . . Parts Self-Destructed . | . . Prevented . | . . Kills | -11 -10 ------- Run | Yrd Mat Combat Hostiles Destroyed 5 | . 5 Guns 5 | . 5 Classes Destroyed 4 | . 4 Builder 1 | . 1 Tunneler 1 | . 1 Swarmer 1 | . 1 Grunt 4 | . 4 Best Kill Streak 2 | . 2 Combat Bots Only 2 | . 2 Max Kills in Single Turn 1 | . 1 Gunslinging . | . . Exploded . | . . Melee . | . . Uniques/NPCs Destroyed . | . . Combat | -11 -10 -------- Run | Yrd Mat Hostile Shots Fired 81 | . 81 Missed 14 | . 14 Damage Taken 824 | . 824 Core 250 | . 250 Absorbed by Shields . | . . Core Remaining (%) 100 | 100 . Volleys Fired 97 | 20 77 Largest 2 | 1 2 Hottest 100 | 20 100 Shots Fired 109 | 20 89 Gun 109 | 20 89 Cannon . | . . Launcher . | . . Special . | . . Kinetic 83 | 20 63 Thermal 26 | . 26 Explosive . | . . Electromagnetic . | . . Robot Hit Streak 12 | 6 12 Robot Miss Streak 5 | 5 4 Penetration Max . | . . Secondary Targets . | . . Shots Hit Robots 65 | 12 53 Core Hits 19 | 2 17 Critical Kills . | . . Critical Parts Destroyed . | . . Critical Strikes 1 | . 1 Burn 1 | . 1 Melee Attacks . | . . Impact . | . . Slashing . | . . Piercing . | . . Sneak Attacks . | . . Combat Hostiles . | . . Follow-up Attacks . | . . Damage Inflicted 596 | 99 497 Guns 596 | 99 497 Cannons . | . . Explosions . | . . Melee . | . . Ramming . | . . Kinetic 398 | 99 299 Thermal 198 | . 198 Explosive . | . . Electromagnetic . | . . Impact . | . . Slashing . | . . Piercing . | . . Highest Corruption . | . . Average Corruption . | . . Corruption Purged . | . . Corruption Blocked . | . . Overload Shots . | . . Overflow Damage . | . . Projectiles . | . . Explosions . | . . Melee . | . . Knockbacks . | . . Impact . | . . Kinetic . | . . Secondary . | . . Self-Inflicted Damage . | . . Shots . | . . Rammed . | . . Targets Rammed . | . . Kicked . | . . Crushed . | . . Highest Temperature 156 | . 156 Average Temperature 43 | . 43 Received Heat Transfer 417 | . 417 Siege Activations . | . . Robots Corrupted . | . . Combat Hostiles . | . . Parts Fried . | . . Impact Corruptions . | . . Robots Melted . | . . Combat Hostiles . | . . Parts Melted 1 | . 1 Heat Transferred 666 | . 666 Parts Sabotaged . | . . Parts Stolen . | . . Parts Stripped . | . . Power Chain Reactions . | . . Alert | -11 -10 ------- Run | Yrd Mat Peak Influence 100 | . 100 Initial . | . . Average 29 | . 41 Maximum Alert Level . | . . Low Security (%) 100 | 100 100 Level 1 . | . . Level 2 . | . . Level 3 . | . . Level 4 . | . . Level 5 . | . . High Security . | . . Max Security . | . . Squads Dispatched . | . . Investigation . | . . Extermination . | . . Reinforcement . | . . Assault . | . . Garrison . | . . Intercept . | . . Searches Triggered . | . . Construction Impeded . | . . Haulers Reinforced . | . . Active Scanning Responses . | . . Cargo Convoy Interrupts . | . . Stealth | -11 -10 --------- Run | Yrd Mat Distress Signals 1 | . 1 Communications Jammed . | . . Distress Signals . | . . Times Spotted 11 | . 11 Peak Tracking Total 4 | . 4 Tactical Retreats . | . . Traps | -11 -10 ------- Run | Yrd Mat Traps Triggered . | . . Indirectly . | . . Trap Hack Attempts . | . . Triggered . | . . Disarmed . | . . Reprogrammed . | . . Reused . | . . Traps Extracted . | . . Installed . | . . Triggered . | . . Machines | -11 -10 ---------- Run | Yrd Mat Machines Disabled . | . . Max in Single Turn . | . . Machines Repaired . | . . Machines Dismantled . | . . Machines Sabotaged . | . . Overloaded Fab Kills . | . . Hacking | -11 -10 --------- Run | Yrd Mat Machines Accessed 1 | . 1 Terminals 1 | . 1 Fabricators . | . . Repair Stations . | . . Recycling Units . | . . Scanalyzers . | . . Garrison Access . | . . Total Hacks 1 | . 1 Successful . | . . Failed 1 | . 1 Catastrophic 1 | . 1 Database Lockouts . | . . Manual . | . . Terminals 1 | . 1 Fabricators . | . . Repair Stations . | . . Recycling Units . | . . Scanalyzers . | . . Garrison Access . | . . Terminal Hacks . | . . Fabricator Hacks . | . . Repair Station Hacks . | . . Recycling Unit Hacks . | . . Scanalyzer . | . . Garrison Access Hacks . | . . Unauthorized Hacks . | . . Terminals . | . . Fabricators . | . . Repair Stations . | . . Recycling Units . | . . Scanalyzers . | . . Garrison Access . | . . Data Cores Recovered . | . . Used . | . . Hacking Detections 1 | . 1 Full Trace Events . | . . Feedback Events . | . . Feedback Blocked . | . . Robot Schematics Acquired . | . . Robots Built . | . . Authchips . | . . Time . | . . Total Robot Build Rating . | . . Part Schematics Acquired . | . . Parts Built . | . . Authchips . | . . Time . | . . Total Part Build Rating . | . . Parts Repaired . | . . Time . | . . Parts Recycled . | . . Recycled Matter . | . . Retrieved Matter . | . . Retrieved Components . | . . Parts Scanalyzed . | . . Part Schematics Acquired . | . . Parts Damaged . | . . Bothacking | -11 -10 ------------ Run | Yrd Mat Used RIF Installer . | . . Robots Hacked . | . . Non-combat . | . . Combat . | . . Robot Hacks Applied . | . . Relay Couplers Released . | . . Fabnet Peak Effective % . | . . Robots Rewired . | . . Allies Hacked . | . . Hacks Repelled . | . . Allies | -11 -10 -------- Run | Yrd Mat Total Allies . | . . Largest Group . | . . Highest-Rated Group . | . . Highest-Rated Ally . | . . Total Orders . | . . Ally Attacks . | . . Total Damage . | . . Kills . | . . Allies Corrupted . | . . Allies Melted . | . . Intel | -11 -10 ------- Run | Yrd Mat Robot Analysis Total . | . . Derelict Logs Recovered . | . . Drone Launches . | . . Drone Recoveries . | . . Exploration | -11 -10 ------------- Run | Yrd Mat Turns Passed 775 | 233 542 Spaces Moved 343 | 95 248 Core 96 | 95 1 Treads . | . . Legs 247 | . 247 Wheels . | . . Hover . | . . Flight . | . . Fastest Speed 50 | 50 120 Average Speed 151 | 196 133 Slowest Speed 200 | 200 190 Overloaded Moves . | . . Propulsion Burnouts . | . . Robots Hopped . | . . Cave-ins Triggered . | . . Exploration Rate (%) 25 | 9 42 Regions Visited 1 Branch Regions . Pre-discovered Areas . | . . Known Exits Taken . | . . Unknown Exits Taken 1 | 1 . Scrap Searched . | . . Spaces Dug . | . . Terrain Destroyed . | . . Melee . | . . Projectile . | . . AOE . | . . Terrain Rammed . | . . Walls Destroyed . | . . Machines Disabled . | . . Actions | -11 -10 --------- Run | Yrd Mat Total 509 | 126 383 Wait 41 | . 41 Move 342 | 94 248 Hop . | . . Pick Up 16 | 9 7 Fast Attach . | . . Attach 12 | 3 9 Detach . | . . Swap 1 | . 1 Drop . | . . Fire 97 | 20 77 Melee . | . . Ram . | . . Kick . | . . Crush . | . . Escape Stasis . | . . Rewire . | . . Trap . | . . Miscellaneous . | . . Route ------- -11/Scrapyard -10/Materials (discovered 2 exits: [*Min] / [Sub]) History --------- Turn | Location | Event 16 | -11/Scrapyard | Discovered new exit (range 15) 234 | -11/Scrapyard | Entered Materials 315 | -10/Materials | Build established: Mutant 472 | -10/Materials | Discovered new exit (range 12) 628 | -10/Materials | Core integrity fell below 50% 678 | -10/Materials | Lost 5 parts (1p2n2w) 732 | -10/Materials | Discovered new exit (range 12) 766 | -10/Materials | Core integrity fell below 20% 776 | -10/Materials | Destroyed by S-10 Pest with Light Assault Rifle Last Messages --------------- 00655_ K-01 Serf cleans the Fusion Modulator. 00655_ G-47 Trooper overheating. 00656_ Acquired 10 matter. 00656_ G-47 Trooper overheating. 00657_ Acquired 4 matter. 00657_ Broken Imp. Heat Sink melted. 00657_ G-47 Trooper destroyed. 00658_ Acquired 6 matter. 00658_ K-01 Serf collects debris. 00661_ K-01 Serf cleans the Fusion Modulator. 00666_ K-01 Serf collects debris. 00691_ K-01 Serf cleans the Processing Tank. 00703_ Acquired Med. Laser. 00703_ K-01 Serf cleans the Processing Tank. 00732_ EXIT=FOUND 00743_ Connecting with Terminal... 00757_ W-16 Scout sends out distress signal. 00767_ K-01 Serf cleans the Nuclear Reactor. 00776_ S-10 Pest destroyed. 00776_ K-01 Serf cleans the Nuclear Reactor. Map ----- +----------------------------------------------------+ | ?????????????????????#############???????????????? | | ?????????????????????# """"" #???????????????? | | ?????????????????????# """"" #???????????????? | | ?????????????????????# """"" #???????????????? | | ?????????????????????# #???????????????? | | ??????????????#####??# #???????????????? | | ??????????????# #??# #????????#??????? | | ??????????????# #??# #???????????????? | | ??????????????# #??######+######???????????????? | | ?????????? ???# ####### #??????????????????? | | ????????? ???# #??????????????????? | | ?????????? ???# #??????????????????? | | ?????????? ???# #????????????? ????? | | #######??? ???####### ### #??#???????????????? | | !#??? ?????#??# ?#### ##??##???#??????????? | | #??# ????????####????# #???????#???????????? | | ##?# ##?????#????????# #????#??????#? ?????? | | #??# #???????????#???# #????########???????? | | ##?# ##??????????????# #???## #????? ?? | | #??# ###??????????##?# ###### """ #???????? | | % #??# #?????##????